bitfinex/quotes_BTCUSD_20240915
["timestamp","ask_amount","ask_price","bid_price","bid_amount"]
[1726378949884,0.001823,60331.0,60330.0,1.24481709]
[1726378951412,0.001823,60331.0,60330.0,1.57632709]
[1726378951620,0.001823,60331.0,60330.0,1.24481709]
[1726378952286,0.001823,60331.0,60330.0,1.57632709]
[1726378952493,0.001823,60331.0,60330.0,1.24481709]
[1726378952911,0.001823,60331.0,60330.0,1.57632709]
[1726378953147,0.001823,60331.0,60330.0,1.57632003]
[1726378956434,0.001823,60331.0,60330.0,1.5771868]
[1726378959981,0.001823,60331.0,60330.0,1.57725654]
[1726378960196,0.001823,60331.0,60330.0,1.556166]
[1726378960413,0.001823,60331.0,60330.0,1.57725654]
[1726378961734,0.001823,60331.0,60330.0,1.57724737]
[1726378963530,0.001823,60331.0,60330.0,1.57723632]
[1726378964604,0.001823,60331.0,60330.0,1.24485955]
[1726378964833,0.097623,60331.0,60330.0,1.24485955]
[1726378968035,0.097623,60331.0,60330.0,1.22378923]
[1726378968253,0.097623,60331.0,60330.0,1.24485687]
[1726378973963,0.097623,60331.0,60330.0,1.22377678]
[1726378974181,0.097623,60331.0,60330.0,1.24485149]
[1726378983228,0.097623,60331.0,60330.0,1.22377678]
[1726378983441,0.097623,60331.0,60330.0,1.24485977]
[1726378983859,0.097623,60331.0,60330.0,1.14956012]
[1726378984066,0.097623,60331.0,60330.0,1.24485977]
[1726378984893,0.097623,60331.0,60330.0,1.12066755]
[1726378985101,0.097623,60331.0,60330.0,1.24486789]
[1726378989679,0.097623,60331.0,60330.0,1.24486818]
[1726378990346,0.001823,60331.0,60330.0,1.24486818]
[1726378990976,0.001823,60331.0,60330.0,1.57637818]
[1726378991636,0.001823,60331.0,60330.0,1.24486818]
[1726378992304,0.001823,60331.0,60330.0,1.57637818]
[1726378992753,0.001823,60331.0,60330.0,1.45217755]
[1726378993213,0.001823,60331.0,60330.0,1.51385981]
[1726378993440,0.001823,60331.0,60330.0,1.45212657]
[1726378994319,0.001823,60331.0,60330.0,1.45210618]
[1726378995002,0.001823,60331.0,60330.0,1.61109832]
[1726378995236,0.001823,60331.0,60330.0,1.51469832]
[1726378995941,0.001823,60331.0,60330.0,1.4936867]
[1726378996372,0.001823,60331.0,60330.0,1.4976867]
[1726378996373,0.002823,60331.0,60330.0,1.4976867]
[1726378996589,0.000823,60331.0,60330.0,1.4936867]
[1726378997076,0.002823,60331.0,60330.0,1.4976867]
[1726378997293,0.002823,60331.0,60330.0,1.51467183]
[1726378997954,0.001823,60331.0,60330.0,1.51467183]
[1726378998212,0.001823,60331.0,60330.0,1.51867183]
[1726378998213,0.002823,60331.0,60330.0,1.51867183]
[1726378998441,0.003823,60331.0,60330.0,1.52067183]
[1726378999114,0.003823,60331.0,60330.0,1.52071915]
[1726378999332,0.001823,60331.0,60330.0,1.51671915]
[1726378999783,0.001823,60331.0,60330.0,1.51871915]
[1726378999999,0.002823,60331.0,60330.0,1.52071915]
[1726379000665,0.002823,60331.0,60330.0,2.22071915]
[1726379001497,0.002823,60331.0,60330.0,2.1996867]
[1726379001709,0.002823,60331.0,60330.0,2.22072312]
[1726379002345,0.002823,60331.0,60330.0,2.15899775]
[1726379003673,0.002823,60331.0,60330.0,2.16100964]
[1726379003882,0.002823,60331.0,60330.0,2.49251964]
[1726379004498,0.002823,60331.0,60330.0,2.16100964]
[1726379004695,0.002823,60331.0,60330.0,2.49251964]
[1726379004958,0.002823,60331.0,60330.0,2.18691503]
[1726379004959,0.102623,60331.0,60330.0,2.18691503]
[1726379005199,0.102623,60331.0,60330.0,1.58221468]
[1726379005445,0.102623,60331.0,60330.0,1.58222425]
[1726379011912,0.102623,60331.0,60330.0,1.58221261]
[1726379012988,0.102623,60331.0,60330.0,1.58221674]
[1726379015214,0.102623,60331.0,60330.0,1.5822143]
[1726379015441,0.102623,60331.0,60330.0,1.56116806]
[1726379015660,0.102623,60331.0,60330.0,1.58221125]
[1726379017753,0.102623,60331.0,60330.0,1.58221467]
[1726379018584,0.102623,60331.0,60330.0,1.5822204]
[1726379019022,0.102623,60331.0,60330.0,1.58222911]
[1726379020521,0.002823,60331.0,60330.0,1.58309588]
[1726379021398,0.002823,60331.0,60330.0,1.91460588]
[1726379021603,0.002823,60331.0,60330.0,1.58309588]
[1726379022022,0.096523,60331.0,60330.0,1.48779623]
[1726379022425,0.096523,60331.0,60330.0,1.45901896]
[1726379022751,0.096523,60331.0,60330.0,1.58310916]
[1726379023393,0.096523,60331.0,60330.0,1.58310719]
[1726379024245,0.096523,60331.0,60330.0,1.58313213]
[1726379024454,0.096523,60331.0,60330.0,1.45901699]
[1726379026347,0.002823,60331.0,60330.0,1.45901699]
[1726379026596,0.002823,60331.0,60330.0,1.45901923]
[1726379027043,0.002823,60331.0,60330.0,1.43796133]
[1726379027255,0.002823,60331.0,60330.0,1.45901139]
[1726379028361,0.002823,60331.0,60330.0,1.46101139]
[1726379028788,0.002823,60331.0,60330.0,1.45901139]
[1726379029630,0.002823,60331.0,60330.0,1.45901649]
[1726379031418,0.002823,60331.0,60330.0,1.66968693]
[1726379031628,0.002823,60331.0,60330.0,1.52074433]
[1726379031836,0.002823,60331.0,60330.0,2.00119693]
[1726379032049,0.002823,60331.0,60330.0,2.00117705]
[1726379032259,0.002823,60331.0,60330.0,1.85225433]
[1726379032915,0.002823,60331.0,60330.0,1.52074433]
[1726379033075,0.096523,60331.0,60330.0,1.52074433]
[1726379033311,0.096523,60331.0,60330.0,1.85225433]
[1726379033535,0.096523,60331.0,60330.0,1.49968917]
[1726379033717,0.096523,60331.0,60330.0,1.52079576]
[1726379036240,0.096523,60331.0,60330.0,1.49968917]
[1726379036489,0.096523,60331.0,60330.0,1.52078001]
[1726379037528,0.096523,60331.0,60330.0,1.49968917]
[1726379037771,0.096523,60331.0,60330.0,1.52078339]
[1726379038339,0.096523,60331.0,60330.0,1.52078097]
[1726379040680,0.096523,60331.0,60330.0,1.52078754]
[1726379043196,0.096523,60331.0,60330.0,1.49968917]
[1726379043434,0.096523,60331.0,60330.0,1.52078763]
[1726379046377,0.096523,60331.0,60330.0,1.52079412]
[1726379047256,0.096523,60331.0,60330.0,1.52079026]
[1726379047821,0.096523,60331.0,60330.0,1.51992349]
[1726379048104,0.096523,60331.0,60330.0,1.52079026]
[1726379048310,0.096523,60331.0,60330.0,1.58236057]
[1726379048532,0.096523,60331.0,60330.0,1.58322734]
[1726379050332,0.096523,60331.0,60330.0,1.56212625]
[1726379050600,0.096523,60331.0,60330.0,1.58321548]
[1726379051038,0.096523,60331.0,60330.0,1.56212625]
[1726379051248,0.096523,60331.0,60330.0,1.58320791]
[1726379051471,0.096523,60331.0,60330.0,1.58320681]
[1726379052120,0.096523,60331.0,60330.0,1.45904299]
[1726379053944,0.096523,60331.0,60330.0,1.45903383]
[1726379057752,0.096523,60331.0,60330.0,1.43796133]
[1726379057964,0.096523,60331.0,60330.0,1.45903889]
[1726379060143,0.096523,60331.0,60330.0,1.41582175]
[1726379062578,0.096523,60331.0,60330.0,1.62637686]
[1726379062835,0.002823,60331.0,60330.0,1.47751436]
[1726379063074,0.002823,60331.0,60330.0,1.62637686]
[1726379063299,0.002823,60331.0,60330.0,1.47751436]
[1726379063516,0.0958,60334.0,60333.0,1.27852465]
[1726379063722,0.0958,60334.0,60333.0,1.36129482]
[1726379063938,0.0958,60334.0,60333.0,1.40481101]
[1726379064840,0.0968,60334.0,60333.0,1.40681101]
[1726379065072,0.0978,60334.0,60333.0,1.4295288]
[1726379067552,0.0978,60334.0,60333.0,1.4294284]
[1726379068946,0.0978,60334.0,60333.0,1.43941608]
[1726379069151,0.0978,60334.0,60333.0,1.37772347]
[1726379072305,0.098623,60334.0,60333.0,1.50169465]
[1726379075274,0.098623,60334.0,60333.0,1.50169234]
[1726379077933,0.098623,60334.0,60333.0,1.50163385]
[1726379078356,0.002823,60334.0,60333.0,1.50163385]
[1726379078568,0.002823,60334.0,60333.0,1.48071518]
[1726379078799,0.002823,60334.0,60333.0,1.50163483]
[1726379079933,0.002823,60334.0,60333.0,1.50162125]
[1726379085196,0.002823,60334.0,60333.0,1.50163454]
[1726379088508,0.002823,60334.0,60333.0,1.4807016]
[1726379088764,0.002823,60334.0,60333.0,1.50163114]
[1726379088987,0.002823,60334.0,60333.0,1.50163088]
[1726379089422,0.002823,60334.0,60333.0,1.50162968]
[1726379091957,0.002823,60334.0,60333.0,1.4807004]
[1726379092176,0.002823,60334.0,60333.0,1.50163374]
[1726379092376,0.002823,60334.0,60333.0,1.5633253]
[1726379092697,0.101223,60334.0,60333.0,1.55333762]
[1726379092938,0.101223,60334.0,60333.0,1.4420749]
[1726379098318,0.101223,60334.0,60333.0,1.4420853]
[1726379099460,0.101223,60334.0,60333.0,1.44212504]
[1726379101495,0.101223,60334.0,60333.0,1.44212988]
[1726379102345,0.101223,60334.0,60333.0,1.36773655]
[1726379104779,0.101223,60334.0,60333.0,1.34675863]
[1726379105012,0.101223,60334.0,60333.0,1.36774323]
[1726379106389,0.101223,60334.0,60333.0,1.46693434]
[1726379107093,0.101223,60334.0,60333.0,1.46697449]
[1726379108182,0.101223,60334.0,60333.0,1.4669794]
[1726379108632,0.101223,60334.0,60333.0,1.36774814]
[1726379111730,0.101223,60334.0,60333.0,1.36776372]
[1726379114115,0.101223,60334.0,60333.0,1.49181063]
[1726379117621,0.101223,60334.0,60333.0,1.47080554]
[1726379117845,0.101223,60334.0,60333.0,1.4917958]
[1726379119063,0.101223,60334.0,60333.0,1.47080554]
[1726379119303,0.101223,60334.0,60333.0,1.49179302]
[1726379121403,0.101223,60334.0,60333.0,1.55348966]
[1726379122131,0.101223,60334.0,60333.0,1.5534933]
[1726379124958,0.101223,60334.0,60333.0,1.42944639]
[1726379125420,0.101223,60334.0,60333.0,1.49180446]
[1726379125885,0.101223,60334.0,60333.0,1.49180619]
[1726379126359,0.101223,60334.0,60333.0,1.55350557]
[1726379129329,0.101223,60334.0,60333.0,1.55349271]
[1726379131211,0.101223,60334.0,60333.0,1.42943627]
[1726379139835,0.101223,60334.0,60333.0,1.40845801]
[1726379140074,0.101223,60334.0,60333.0,1.42944729]
[1726379140318,0.101223,60334.0,60333.0,1.36774791]
[1726379142433,0.101223,60334.0,60333.0,1.42946985]
[1726379142675,0.101223,60334.0,60333.0,1.49187164]
[1726379142936,0.101223,60334.0,60333.0,1.16037653]
[1726379143168,0.177323,60334.0,60333.0,1.13555916]
[1726379149364,0.177323,60334.0,60333.0,1.11457199]
[1726379149569,0.177323,60334.0,60333.0,1.13558786]
[1726379149780,0.177323,60334.0,60333.0,1.11457199]
[1726379149956,0.177323,60334.0,60333.0,1.13558856]
[1726379150706,0.177323,60334.0,60333.0,1.01526563]
[1726379150946,0.177323,60334.0,60333.0,1.03627891]
[1726379152255,0.177323,60334.0,60333.0,1.11074893]
[1726379152961,0.177323,60334.0,60333.0,1.08973565]
[1726379153187,0.177323,60334.0,60333.0,1.11076304]
[1726379155945,0.177323,60334.0,60333.0,1.11076203]
[1726379157885,0.177323,60334.0,60333.0,1.08973565]
[1726379158028,0.177323,60334.0,60333.0,1.11076203]
[1726379158253,0.177323,60334.0,60333.0,1.08972905]
[1726379158459,0.177323,60334.0,60333.0,1.11075543]
[1726379158664,0.177323,60334.0,60333.0,1.08972905]
[1726379158847,0.177323,60334.0,60333.0,1.11075543]
[1726379159048,0.177323,60334.0,60333.0,1.08972905]
[1726379159297,0.177323,60334.0,60333.0,1.11075543]
[1726379159497,0.177323,60334.0,60333.0,1.08972905]
[1726379159701,0.177323,60334.0,60333.0,1.11075543]
[1726379159899,0.177323,60334.0,60333.0,1.08972905]
[1726379160168,0.101223,60334.0,60333.0,1.11075543]
[1726379160882,0.101223,60334.0,60333.0,1.08972905]
[1726379161360,0.101223,60334.0,60333.0,1.11072797]
[1726379161593,0.101223,60334.0,60333.0,1.08972905]
[1726379161831,0.101223,60334.0,60333.0,1.11072349]
[1726379162073,0.101223,60334.0,60333.0,1.08972457]
[1726379162321,0.101223,60334.0,60333.0,1.11072349]
[1726379163263,0.101223,60334.0,60333.0,1.08972457]
[1726379163501,0.101223,60334.0,60333.0,1.11072349]
[1726379166535,0.101223,60334.0,60333.0,1.11071978]
[1726379170108,0.101223,60334.0,60333.0,1.1107031]
[1726379170347,0.101223,60334.0,60333.0,1.11070312]
[1726379171243,0.101223,60334.0,60333.0,1.11070071]
[1726379171488,0.101223,60334.0,60333.0,1.03624418]
[1726379171719,0.101223,60334.0,60333.0,1.13551956]
[1726379173470,0.101223,60334.0,60333.0,1.11454101]
[1726379173683,0.101223,60334.0,60333.0,1.11064761]
[1726379175753,0.101223,60334.0,60333.0,0.7791578]
[1726379176835,0.101223,60334.0,60333.0,1.1106508]
[1726379177811,0.101223,60334.0,60333.0,1.11069214]
[1726379178276,0.101223,60334.0,60333.0,0.04951619]
[1726379178277,0.37690023,60334.0,60333.0,0.04951619]
[1726379178519,0.37690023,60334.0,60333.0,0.1894691]
[1726379178966,0.37690023,60334.0,60333.0,0.10129965]
[1726379179196,0.70838823,60334.0,60333.0,0.10129965]
[1726379179663,0.70738823,60334.0,60333.0,0.11013861]
[1726379179921,0.70738823,60334.0,60333.0,0.11213861]
[1726379180367,0.70738823,60334.0,60333.0,0.10813861]
[1726379180368,0.70638823,60334.0,60333.0,0.10813861]
[1726379180582,0.70638823,60334.0,60333.0,0.10613861]
[1726379180812,0.70638823,60334.0,60333.0,0.11113861]
[1726379180813,0.71338823,60334.0,60333.0,0.11113861]
[1726379181050,0.71238823,60334.0,60333.0,0.10613861]
[1726379181301,0.70638823,60334.0,60333.0,0.10613861]
[1726379181784,0.7323935,60334.0,60333.0,0.10613861]
[1726379182311,0.7383935,60334.0,60333.0,0.10613861]
[1726379182784,1.0698815,60334.0,60333.0,0.10613861]
[1726379183462,1.04387623,60334.0,60333.0,0.10613861]
[1726379183708,1.36936423,60334.0,60333.0,0.001]
[1726379184168,1.37436423,60334.0,60333.0,0.001]
[1726379187522,1.70585223,60334.0,60333.0,0.001]
[1726379187809,1.42410173,60334.0,60333.0,0.001]
[1726379188024,1.37436423,60334.0,60333.0,0.09629965]
[1726379188507,1.36936423,60334.0,60333.0,0.09629965]
[1726379188741,1.37736423,60334.0,60333.0,0.001]
[1726379189166,1.36936423,60334.0,60333.0,0.001]
[1726379189609,1.002447,60332.0,60331.0,0.001646]
[1726379190948,1.02845383,60332.0,60331.0,0.001646]
[1726379191194,1.04845383,60332.0,60331.0,0.002646]
[1726379191435,1.04045383,60332.0,60331.0,0.001646]
[1726379192281,1.02845383,60332.0,60331.0,0.001646]
[1726379192528,1.04045383,60332.0,60331.0,0.01188496]
[1726379193473,1.04045383,60332.0,60331.0,0.001646]
[1726379193474,1.021447,60332.0,60331.0,0.001646]
[1726379194193,1.009447,60332.0,60331.0,0.001646]
[1726379194404,1.002447,60332.0,60331.0,0.001646]
[1726379194646,1.021447,60332.0,60331.0,0.001646]
[1726379196481,1.04745468,60332.0,60331.0,0.001646]
[1726379197439,1.04745468,60332.0,60331.0,0.01188496]
[1726379198573,1.021447,60332.0,60331.0,0.01188496]
[1726379201646,1.021447,60332.0,60331.0,0.10701234]
[1726379201872,1.04745457,60332.0,60331.0,0.09677338]
[1726379203528,1.021447,60332.0,60331.0,0.09677338]
[1726379205210,1.02227,60332.0,60331.0,0.09677338]
[1726379206550,1.04827754,60332.0,60331.0,0.09677338]
[1726379207620,1.02227,60332.0,60331.0,0.09677338]
[1726379210033,1.0482775,60332.0,60331.0,0.09677338]
[1726379210952,1.0482775,60332.0,60331.0,0.001646]
[1726379212482,1.02227,60332.0,60331.0,0.001646]
[1726379220897,1.04827751,60332.0,60331.0,0.001646]
[1726379223001,1.37977651,60332.0,60331.0,0.001646]
[1726379226361,1.274169,60332.0,60331.0,0.01186805]
[1726379226791,1.274169,60332.0,60331.0,0.001646]
[1726379230783,1.30017648,60332.0,60331.0,0.001646]
[1726379231608,1.39974814,60332.0,60331.0,0.001646]
[1726379232456,1.37374066,60332.0,60331.0,0.001646]
[1726379233279,1.274169,60332.0,60331.0,0.001646]
[1726379235624,1.30017644,60332.0,60331.0,0.001646]
[1726379235866,1.274169,60332.0,60331.0,0.001646]
[1726379238781,1.30017644,60332.0,60331.0,0.001646]
[1726379242516,1.274169,60332.0,60331.0,0.001646]
[1726379244492,1.50894871,60332.0,60331.0,0.001646]
[1726379244699,1.38440223,60332.0,60331.0,0.001646]
[1726379245612,1.41040993,60332.0,60331.0,0.001646]
[1726379246936,1.45383884,60332.0,60331.0,0.001646]
[1726379247349,1.32930993,60332.0,60331.0,0.001646]
[1726379247552,1.42892729,60332.0,60331.0,0.001646]
[1726379247752,1.32930993,60332.0,60331.0,0.001646]
[1726379247958,1.42892715,60332.0,60331.0,0.001646]
[1726379248390,0.61668822,60332.0,60331.0,0.01186805]
[1726379248609,0.31432245,60332.0,60331.0,0.01186805]
[1726379248826,0.21470523,60332.0,60331.0,0.04700126]
[1726379249043,0.185572,60332.0,60331.0,0.07217567]
[1726379249517,0.21470523,60332.0,60331.0,0.07217567]
[1726379250185,0.24071126,60332.0,60331.0,0.07217567]
[1726379251246,0.21157803,60332.0,60331.0,0.07217567]
[1726379253369,0.24071126,60332.0,60331.0,0.07217567]
[1726379256504,0.66451026,60332.0,60331.0,0.07217567]
[1726379256919,0.66451026,60332.0,60331.0,0.01186805]
[1726379257406,0.99600926,60332.0,60331.0,0.001646]
[1726379258127,0.97000323,60332.0,60331.0,0.001646]
[1726379262411,0.63850423,60332.0,60331.0,0.001646]
[1726379266023,0.54620423,60332.0,60331.0,0.001646]
[1726379266236,0.24071191,60332.0,60331.0,0.001646]
[1726379266455,0.24071191,60332.0,60331.0,0.09855895]
[1726379267372,0.04895623,60332.0,60331.0,0.09855895]
[1726379267588,0.019823,60332.0,60331.0,0.09855895]
[1726379267778,0.04895623,60332.0,60331.0,0.09855895]
[1726379268287,0.019823,60332.0,60331.0,0.09855895]
[1726379270939,0.04895623,60332.0,60331.0,0.09855895]
[1726379271078,0.019823,60332.0,60331.0,0.09855895]
[1726379272636,0.04895623,60332.0,60331.0,0.09855895]
[1726379272850,0.019823,60332.0,60331.0,0.09855895]
[1726379273326,0.21470523,60332.0,60331.0,0.09855895]
[1726379274406,0.019823,60332.0,60331.0,0.09855895]
[1726379274627,0.04895623,60332.0,60331.0,0.09855895]
[1726379275095,0.21470523,60332.0,60331.0,0.09855895]
[1726379275528,0.019823,60332.0,60331.0,0.09855895]
[1726379276866,0.019823,60332.0,60331.0,0.26431095]
[1726379277324,0.019823,60332.0,60331.0,0.09855895]
[1726379277991,0.019823,60332.0,60331.0,0.26431095]
[1726379278215,0.019823,60332.0,60331.0,0.09855895]
[1726379281370,0.04582922,60332.0,60331.0,0.09855895]
[1726379283342,0.019823,60332.0,60331.0,0.09855895]
[1726379284333,0.117623,60332.0,60331.0,0.09855895]
[1726379284563,0.97964717,60332.0,60331.0,0.09855895]
[1726379284793,0.97964717,60332.0,60331.0,0.02679779]
[1726379285017,0.97964717,60332.0,60331.0,0.001646]
[1726379286319,0.64400423,60332.0,60331.0,0.001646]
[1726379287209,0.64400423,60332.0,60331.0,0.06192975]
[1726379287448,0.64400423,60332.0,60331.0,0.07818018]
[1726379287650,0.67001095,60332.0,60331.0,0.07818018]
[1726379289560,0.64400423,60332.0,60331.0,0.07818018]
[1726379292855,0.64400423,60332.0,60331.0,0.01789643]
[1726379293705,0.69377947,60332.0,60331.0,0.01789643]
[1726379296973,0.71978622,60332.0,60331.0,0.01789643]
[1726379297454,0.69377947,60332.0,60331.0,0.01789643]
[1726379300991,0.69377947,60332.0,60331.0,0.001646]
[1726379302370,0.71866709,60332.0,60331.0,0.001646]
[1726379302726,0.64400423,60332.0,60331.0,0.001646]
[1726379303144,0.69381251,60332.0,60331.0,0.001646]
[1726379303372,0.64400423,60332.0,60331.0,0.001646]
[1726379303600,0.64400423,60332.0,60331.0,0.02844455]
[1726379304917,0.69381243,60332.0,60331.0,0.02844455]
[1726379305117,0.64400423,60332.0,60331.0,0.02844455]
[1726379305976,0.71866709,60332.0,60331.0,0.02844455]
[1726379306234,0.74467374,60332.0,60331.0,0.02844455]
[1726379306864,0.74467374,60332.0,60331.0,0.001646]
[1726379307342,0.71866709,60332.0,60331.0,0.001646]
[1726379307549,0.71871348,60332.0,60331.0,0.001646]
[1726379312104,1.05021248,60332.0,60331.0,0.001646]
[1726379312318,0.71870566,60332.0,60331.0,0.001646]
[1726379314116,1.05020466,60332.0,60331.0,0.01186805]
[1726379316978,1.05019812,60332.0,60331.0,0.01186805]
[1726379317423,1.07620504,60332.0,60331.0,0.01186805]
[1726379317610,1.05019812,60332.0,60331.0,0.01186805]
[1726379318735,0.71869912,60332.0,60331.0,0.01186805]
[1726379319173,1.05019812,60332.0,60331.0,0.01186805]
[1726379320051,1.05019812,60332.0,60331.0,0.001646]
[1726379322879,0.69558923,60331.0,60330.0,0.000444]
[1726379323098,1.02709323,60331.0,60330.0,0.000444]
[1726379324231,1.03309323,60331.0,60330.0,0.000444]
[1726379324929,1.04309323,60331.0,60330.0,0.000444]
[1726379325659,1.04309323,60331.0,60330.0,0.01016605]
[1726379327268,1.11778069,60331.0,60330.0,0.000444]
[1726379327717,1.44928249,60331.0,60330.0,0.000444]
[1726379327970,1.11777849,60331.0,60330.0,0.000444]
[1726379328657,1.11777768,60331.0,60330.0,0.000444]
[1726379328888,1.11777782,60331.0,60330.0,0.000444]
[1726379329375,1.44928182,60331.0,60330.0,0.000444]
[1726379329588,1.37459723,60331.0,60330.0,0.000444]
[1726379329806,1.47417754,60331.0,60330.0,0.000444]
[1726379330477,1.37459723,60331.0,60330.0,0.000444]
[1726379330733,1.47417754,60331.0,60330.0,0.000444]
[1726379330958,1.37459723,60331.0,60330.0,0.000444]
[1726379331172,1.44927754,60331.0,60330.0,0.000444]
[1726379331388,1.37459723,60331.0,60330.0,0.000444]
[1726379332714,1.44927438,60331.0,60330.0,0.000444]
[1726379333435,1.37459723,60331.0,60330.0,0.000444]
[1726379333650,1.37459723,60331.0,60330.0,0.00209]
[1726379333881,1.37542023,60331.0,60330.0,0.00209]
[1726379334104,1.45009502,60331.0,60330.0,0.00209]
[1726379335951,1.45009501,60331.0,60330.0,0.00209]
[1726379336221,1.45009566,60331.0,60330.0,0.00209]
[1726379336446,1.47610373,60331.0,60330.0,0.00209]
[1726379336911,1.4014283,60331.0,60330.0,0.00209]
[1726379337171,1.4761049,60331.0,60330.0,0.00209]
[1726379337382,1.45009509,60331.0,60330.0,0.00209]
[1726379337595,1.37542023,60331.0,60330.0,0.00209]
[1726379338055,1.45009521,60331.0,60330.0,0.00209]
[1726379339062,1.47499037,60331.0,60330.0,0.00209]
[1726379339317,1.37542023,60331.0,60330.0,0.00209]
[1726379340049,1.47499037,60331.0,60330.0,0.00209]
[1726379340285,1.45009692,60331.0,60330.0,0.00209]
[1726379340536,1.45009609,60331.0,60330.0,0.00209]
[1726379340781,1.37542023,60331.0,60330.0,0.00209]
[1726379342093,1.49988,60331.0,60330.0,0.00209]
[1726379343532,1.42520584,60331.0,60330.0,0.00209]
[1726379343758,1.42520276,60331.0,60330.0,0.00209]
[1726379344239,1.4749853,60331.0,60330.0,0.00209]
[1726379345856,1.474993,60331.0,60330.0,0.00209]
[1726379348453,1.4749997,60331.0,60330.0,0.00209]
[1726379349392,1.37542023,60331.0,60330.0,0.00209]
[1726379349631,1.47500157,60331.0,60330.0,0.00209]
[1726379349884,1.37542023,60331.0,60330.0,0.00209]
[1726379350799,1.47500087,60331.0,60330.0,0.00209]
[1726379351026,1.37542023,60331.0,60330.0,0.00209]
[1726379352537,1.47500224,60331.0,60330.0,0.00209]
[1726379352765,1.37542023,60331.0,60330.0,0.00209]
[1726379353252,1.47500198,60331.0,60330.0,0.00209]
[1726379353749,1.37542023,60331.0,60330.0,0.00209]
[1726379353989,1.49989457,60331.0,60330.0,0.00209]
[1726379355858,1.37542023,60331.0,60330.0,0.00209]
[1726379356372,1.49989457,60331.0,60330.0,0.00209]
[1726379356826,1.47499712,60331.0,60330.0,0.00209]
[1726379357054,1.37542023,60331.0,60330.0,0.00209]
[1726379357980,1.49989457,60331.0,60330.0,0.00209]
[1726379367148,1.49989854,60331.0,60330.0,0.00209]
[1726379369231,1.37542023,60331.0,60330.0,0.00209]
[1726379380803,1.29722023,60331.0,60330.0,0.00209]
[1726379381787,1.32322869,60331.0,60330.0,0.00209]
[1726379390849,1.29722023,60331.0,60330.0,0.00209]
[1726379428826,1.32322864,60331.0,60330.0,0.00209]
[1726379432315,1.40002864,60331.0,60330.0,0.00209]
[1726379432563,1.37402023,60331.0,60330.0,0.00209]
[1726379432850,1.85498822,60331.0,60330.0,0.00209]
[1726379433302,1.84498822,60331.0,60330.0,0.00209]
[1726379433541,1.35968422,60331.0,60330.0,0.00209]
[1726379433759,1.21022023,60331.0,60330.0,0.00209]
[1726379434734,1.20422023,60331.0,60330.0,0.00209]
[1726379434946,1.31122023,60331.0,60330.0,0.00209]
[1726379435150,1.29722023,60331.0,60330.0,0.00209]
[1726379435411,1.28322023,60331.0,60330.0,0.00209]
[1726379435630,1.29722023,60331.0,60330.0,0.00209]
[1726379435854,1.32322944,60331.0,60330.0,0.00209]
[1726379436592,1.33722944,60331.0,60330.0,0.00209]
[1726379437414,1.41402944,60331.0,60330.0,0.00209]
[1726379440001,1.56347614,60331.0,60330.0,0.00209]
[1726379440646,1.41402944,60331.0,60330.0,0.00209]
[1726379440810,1.41602944,60331.0,60330.0,0.00209]
[1726379441036,1.41402944,60331.0,60330.0,0.00209]
[1726379441220,1.74553344,60331.0,60330.0,0.00209]
[1726379441613,1.41402944,60331.0,60330.0,0.00209]
[1726379441785,1.74553344,60331.0,60330.0,0.00209]
[1726379442000,1.89497095,60331.0,60330.0,0.00209]
[1726379442203,1.41402944,60331.0,60330.0,0.00209]
[1726379442600,1.74553344,60331.0,60330.0,0.00209]
[1726379443258,1.71952423,60331.0,60330.0,0.00209]
[1726379446330,1.74553438,60331.0,60330.0,0.00209]
[1726379447617,1.71952423,60331.0,60330.0,0.00209]
[1726379448317,1.38802023,60331.0,60330.0,0.00209]
[1726379448544,1.86890774,60331.0,60330.0,0.00209]
[1726379448973,1.53740374,60331.0,60330.0,0.00209]
[1726379449670,1.86890774,60331.0,60330.0,0.00209]
[1726379450344,1.71952423,60331.0,60330.0,0.00209]
[1726379450775,1.85489278,60331.0,60330.0,0.00209]
[1726379451215,1.84089278,60331.0,60330.0,0.00209]
[1726379451427,1.85489278,60331.0,60330.0,0.00209]
[1726379451871,1.84089278,60331.0,60330.0,0.00209]
[1726379452095,1.85489278,60331.0,60330.0,0.00209]
[1726379452318,1.86889278,60331.0,60330.0,0.00209]
[1726379452759,1.85489278,60331.0,60330.0,0.00209]
[1726379453198,1.86889278,60331.0,60330.0,0.00209]
[1726379455130,1.86887818,60331.0,60330.0,0.00209]
[1726379456703,1.89488843,60331.0,60330.0,0.00209]
[1726379457600,1.87087818,60331.0,60330.0,0.00209]
[1726379459750,1.89688854,60331.0,60330.0,0.00209]
[1726379460395,1.89488854,60331.0,60330.0,0.00209]
[1726379463456,1.86887818,60331.0,60330.0,0.00209]
[1726379466314,1.86887496,60331.0,60330.0,0.00209]
[1726379467071,1.71952423,60331.0,60330.0,0.00209]
[1726379467272,1.86887611,60331.0,60330.0,0.00209]
[1726379467881,1.89488632,60331.0,60330.0,0.00209]
[1726379468970,1.89688632,60331.0,60330.0,0.00209]
[1726379470085,1.89488632,60331.0,60330.0,0.00209]
[1726379473460,1.86887611,60331.0,60330.0,0.00209]
[1726379473896,1.86889739,60331.0,60330.0,0.00209]
[1726379476321,1.87089739,60331.0,60330.0,0.00209]
[1726379476537,1.74753444,60331.0,60330.0,0.00209]
[1726379477935,1.71952423,60331.0,60330.0,0.00209]
[1726379479102,1.72152423,60331.0,60330.0,0.00209]
[1726379480199,1.71952423,60331.0,60330.0,0.00209]
[1726379480427,1.72152423,60331.0,60330.0,0.00209]
[1726379482353,1.71952423,60331.0,60330.0,0.00209]
[1726379486278,1.74553441,60331.0,60330.0,0.00209]
[1726379487550,1.64272423,60331.0,60330.0,0.00209]
[1726379488923,1.31122023,60331.0,60330.0,0.00209]
[1726379489575,1.64272423,60331.0,60330.0,0.00209]
[1726379490439,1.31122023,60331.0,60330.0,0.00209]
[1726379504022,1.21822023,60331.0,60330.0,0.00209]
[1726379507144,1.36769998,60331.0,60330.0,0.00209]
[1726379508034,1.39370866,60331.0,60330.0,0.00209]
[1726379511345,1.39367167,60331.0,60330.0,0.00209]
[1726379513293,1.36766299,60331.0,60330.0,0.00209]
[1726379513513,1.21822023,60331.0,60330.0,0.00209]
[1726379517085,1.36766299,60331.0,60330.0,0.00209]
[1726379517997,1.24422891,60331.0,60330.0,0.00209]
[1726379519809,1.33752891,60331.0,60330.0,0.00209]
[1726379520675,1.48694376,60331.0,60330.0,0.00209]